bitfinex/quotes_ETHUSD_20230404
["timestamp","ask_amount","ask_price","bid_price","bid_amount"]
[1680572673356,12.94368,1810.8,1810.5,0.50729056]
[1680572680863,11.28089,1810.8,1810.5,0.50729056]
[1680572681067,11.72268,1810.8,1810.5,0.50729056]
[1680572681782,12.93868,1810.8,1810.5,0.50729056]
[1680572682324,12.93868,1810.8,1810.3,0.57176159]
[1680572683327,12.93868,1810.8,1810.4,0.50906783]
[1680572684381,12.93868,1810.8,1810.3,0.57176159]
[1680572692282,12.40668,1810.8,1810.3,0.57176159]
[1680572692632,12.40668,1810.8,1810.4,0.51165764]
[1680572693415,12.40668,1810.8,1810.2,6.19352795]
[1680572693618,12.40668,1810.8,1810.3,0.57176159]
[1680572698424,12.40668,1810.8,1810.3,1.43152795]
[1680572698623,12.40668,1810.8,1810.3,0.57176159]
[1680572698775,12.40668,1810.8,1810.4,0.05717616]
[1680572701277,12.40668,1810.8,1810.3,0.57176159]
[1680572701521,12.40668,1810.8,1810.3,1.43152795]
[1680572701724,12.40668,1810.8,1810.3,0.57176159]
[1680572702023,12.40668,1810.8,1810.3,1.43152795]
[1680572702221,11.72268,1810.8,1810.3,0.57176159]
[1680572702523,11.72268,1810.8,1810.3,1.43152795]
[1680572702732,11.72268,1810.8,1810.3,0.57176159]
[1680572703034,11.72268,1810.8,1810.3,1.22095163]
[1680572705090,0.684,1810.7,1810.3,0.57176159]
[1680572705429,1.54377728,1810.6,1810.3,0.57176159]
[1680572706391,1.54377728,1810.6,1810.2,6.19352795]
[1680572706806,1.54377728,1810.6,1810.3,0.57176159]
[1680572707457,1.54377728,1810.6,1810.4,0.43011668]
[1680572707855,1.34673,1810.7,1810.4,0.43011668]
[1680572708024,0.22092,1810.7,1810.4,0.53030451]
[1680572711060,6.34112302,1810.9,1810.4,1.1020661]
[1680572711227,0.002,1810.9,1810.5,3.44799038]
[1680572711441,0.79959302,1811.0,1810.5,3.44799038]
[1680572711846,0.22087,1811.0,1810.5,3.44799038]
[1680572712149,0.22087,1811.0,1810.6,0.34479904]
[1680572714348,2.20005846,1811.0,1810.5,5.5906682]
[1680572714662,1.24133302,1811.0,1810.5,5.01890661]
[1680572715925,0.79959302,1811.0,1810.5,5.5906682]
[1680572716136,2.12481302,1811.0,1810.5,5.01890661]
[1680572716345,1.24133302,1811.0,1810.5,4.9147]
[1680572716662,1.24133302,1811.0,1810.5,4.9067]
[1680572717420,4.0073552,1811.0,1810.4,1.00987827]
[1680572717619,0.23,1810.9,1810.4,1.00187827]
[1680572717848,0.2209,1810.8,1810.4,1.86164463]
[1680572718068,0.47340951,1810.9,1810.5,0.57176159]
[1680572718270,0.47340951,1810.9,1810.4,1.86164463]
[1680572718639,0.47340951,1810.9,1810.5,0.57176159]
[1680572718840,0.47340951,1810.9,1810.4,1.86164463]
[1680572720062,0.47340951,1810.9,1810.5,0.57176159]
[1680572721028,0.22088,1810.9,1810.5,0.57176159]
[1680572722370,0.22088,1810.9,1810.6,0.39701786]
[1680572726589,0.22088,1810.9,1810.6,0.49389581]
[1680572726889,0.66262,1811.0,1810.6,0.49389581]
[1680572727184,0.22088,1811.0,1810.6,0.49389581]
[1680572727844,0.66262,1811.0,1810.6,0.49389581]
[1680572728259,0.65885638,1811.0,1810.6,0.49989581]
[1680572736217,0.65885638,1811.0,1810.6,0.40301786]
[1680572737393,0.65885638,1811.0,1810.6,0.87005125]
[1680572743233,0.23,1810.9,1810.6,0.87005125]
[1680572743437,0.22089,1810.8,1810.6,0.87005125]
[1680572744395,16.46885737,1811.1,1810.6,0.87005125]
[1680572744640,0.2209,1810.8,1810.6,0.87005125]
[1680572745138,0.22089,1810.8,1810.6,0.87005125]
[1680572748119,1.43993093,1811.2,1810.8,0.57176159]
[1680572748310,12.54490428,1811.4,1810.9,0.05717616]
[1680572748621,3.08313681,1811.3,1810.9,0.05717616]
[1680572748825,3.08313681,1811.3,1810.8,0.57176159]
[1680572748826,4.31187218,1811.3,1810.8,0.57176159]
[1680572749036,0.66251,1811.3,1810.8,0.57176159]
[1680572749215,1.24123302,1811.3,1810.7,1.43752795]
[1680572749420,1.24123302,1811.3,1810.7,4.42445013]
[1680572749627,0.22084,1811.3,1810.8,0.57176159]
[1680572749829,0.22084,1811.3,1810.9,0.05717616]
[1680572749830,1.75813034,1811.3,1810.9,0.05717616]
[1680572750034,0.22084,1811.3,1810.9,0.05717616]
[1680572750441,0.22084,1811.3,1810.8,0.006]
[1680572750951,12.67375302,1811.4,1810.8,0.79865159]
[1680572751104,0.57800037,1811.4,1810.8,4.00646377]
[1680572751310,5.63952988,1811.5,1810.8,4.86623013]
[1680572751616,5.63952988,1811.5,1810.9,0.22087]
[1680572751823,5.63952988,1811.5,1810.9,1.19392101]
[1680572752441,5.63952988,1811.5,1811.0,0.79986913]
[1680572753213,5.63952988,1811.5,1811.0,0.80586913]
[1680572753440,10.06717206,1811.5,1811.0,0.80586913]
[1680572753712,0.23,1811.4,1811.0,0.79986913]
[1680572754041,0.22083,1811.3,1811.0,0.79986913]
[1680572754225,0.45083,1811.4,1811.0,0.88045604]
[1680572757223,0.45083,1811.4,1811.0,0.79986913]
[1680572759752,0.45082,1811.4,1811.0,0.79986913]
[1680572761071,3.98602218,1811.3,1811.0,0.79986913]
[1680572761225,0.22086,1811.1,1811.0,0.79986913]
[1680572761424,0.22086,1811.1,1810.8,0.006]
[1680572762529,0.22086,1811.1,1810.9,0.72921223]
[1680572762936,18.11135,1811.2,1810.9,0.72921223]
[1680572763151,20.87737218,1811.2,1810.9,0.72921223]
[1680572763469,20.87737218,1811.2,1810.8,0.006]
[1680572763621,20.87737218,1811.2,1810.7,0.006]
[1680572764467,20.43567218,1811.2,1810.7,0.006]
[1680572765205,1.22,1811.0,1810.7,0.006]
[1680572765401,1.22,1810.8,1810.5,0.006]
[1680572765698,0.89271,1810.7,1810.4,0.006]
[1680572765853,1.38058322,1810.7,1810.4,0.006]
[1680572767094,0.89271,1810.7,1810.4,0.006]
[1680572767397,0.89271,1810.7,1810.5,0.62745066]
[1680572768414,0.4509,1810.7,1810.5,0.62745066]
[1680572770418,0.89271,1810.7,1810.5,0.62745066]
[1680572770977,3.65873218,1810.7,1810.5,0.62745066]
[1680572771169,0.02251951,1810.6,1810.5,0.62745066]
[1680572771383,1.56895951,1810.6,1810.5,0.62745066]
[1680572771824,4.56498169,1810.6,1810.5,0.62745066]
[1680572772514,4.56498169,1810.6,1810.2,0.006]
[1680572772718,0.23,1810.5,1810.1,0.106]
[1680572773050,1.22,1810.2,1810.1,0.1]
[1680572773348,11.57181218,1810.2,1810.1,0.1]
[1680572773549,22.84461218,1810.2,1810.1,0.1]
[1680572773833,25.86713169,1810.2,1810.1,0.1]
[1680572774241,25.86381826,1810.2,1810.1,0.1]
[1680572777406,28.61906093,1810.2,1810.1,0.1]
[1680572778293,29.83706093,1810.2,1810.1,0.1]
[1680572778693,28.61906093,1810.2,1810.1,0.1]
[1680572782172,29.83906093,1810.2,1810.1,0.1]
[1680572785319,29.83906093,1810.2,1810.0,0.1]
[1680572785517,14.24302218,1810.1,1810.0,0.1]
[1680572785679,17.11796218,1810.1,1810.0,0.1]
[1680572787343,18.11406667,1810.1,1810.0,0.1]
[1680572794549,0.5,1810.0,1809.9,0.1]
[1680572794691,19.79610218,1810.0,1809.9,0.1]
[1680572794893,25.00810218,1810.0,1809.9,0.1]
[1680572796484,0.99610449,1809.9,1809.7,0.1]
[1680572796684,15.00213218,1809.8,1809.7,0.1]
[1680572796886,15.00213218,1809.8,1808.3,0.321042]
[1680572796887,5.809,1808.4,1808.3,0.321042]
[1680572797108,6.53425218,1808.4,1808.3,0.321042]
[1680572797401,6.53425218,1808.4,1807.8,1.22125]
[1680572797402,0.002,1808.4,1807.8,1.22125]
[1680572797600,0.88459,1808.8,1807.8,1.22125]
[1680572797601,14.4572,1808.8,1808.0,1.22]
[1680572797800,0.22119,1808.4,1808.1,0.122]
[1680572798344,0.66357,1808.4,1808.2,0.49991821]
[1680572799523,0.66357,1808.4,1808.0,0.006]
[1680572799731,0.66357,1808.4,1807.9,0.006]
[1680572799929,0.66357,1808.4,1807.8,0.006]
[1680572800253,0.66357,1808.4,1807.5,4.5501]
[1680572800254,5.809,1808.2,1807.6,0.006]
[1680572800432,10.12366218,1808.1,1807.6,0.006]
[1680572800610,0.23,1808.0,1807.6,0.006]
[1680572800809,0.66375,1807.9,1807.6,0.006]
[1680572801017,0.23,1807.8,1807.6,0.006]
[1680572801386,0.22127,1807.7,1807.4,0.006]
[1680572801536,0.22127,1807.7,1807.4,0.1286]
[1680572801901,0.22127,1807.7,1807.4,0.1226]
[1680572802104,0.22127,1807.7,1807.4,0.1286]
[1680572802451,1.54892,1807.7,1807.4,0.1286]
[1680572802615,1.54892,1807.7,1807.1,4.9099]
[1680572802616,1.54892,1807.7,1807.3,0.006]
[1680572802817,1.54892,1807.7,1807.0,2.36071757]
[1680572802818,1.54892,1807.7,1807.2,1.006]
[1680572803045,0.66382,1807.7,1807.2,1.006]
[1680572803247,3.42984218,1807.7,1807.2,1.006]
[1680572803411,0.23,1807.6,1807.2,0.006]
[1680572803612,0.45129,1807.6,1807.2,0.006]
[1680572803814,0.22127,1807.8,1807.2,0.006]
[1680572804021,0.22128,1807.7,1807.2,1.226]
[1680572804315,0.88496,1808.0,1807.3,2.88862218]
[1680572804516,0.22126,1807.9,1807.4,1.22]
[1680572804846,0.22126,1807.9,1807.4,1.226]
[1680572805055,0.66373,1808.0,1807.4,1.226]
[1680572805264,0.22321,1808.2,1807.6,1.22]
[1680572805430,0.22121,1808.2,1807.6,1.22]
[1680572805628,0.66363,1808.2,1807.7,0.122]
[1680572807692,0.22319,1808.4,1807.8,2.76602218]
[1680572807820,0.44233,1808.6,1808.2,1.22]
[1680572808176,11.98033363,1808.8,1808.0,1.212]
[1680572808177,1.54824,1808.5,1808.0,1.212]
[1680572808467,1.54824,1808.5,1808.0,1.334]
[1680572808651,13.31377363,1808.8,1808.2,1.22]
[1680572808652,11.10177363,1808.8,1808.2,1.22]
[1680572808815,0.66345,1808.7,1808.2,1.22]
[1680572809016,0.66345,1808.7,1808.3,0.122]
[1680572810085,9.23847218,1808.7,1808.3,0.122]
[1680572810377,0.23,1808.6,1808.0,1.334]
[1680572810519,0.23,1808.6,1808.0,1.55523]
[1680572810883,0.23,1808.6,1808.0,1.9977]
[1680572811167,0.45116,1808.6,1808.0,1.55523]
[1680572811667,10.958,1808.8,1808.0,5.32125218]
[1680572811978,10.958,1808.8,1808.2,1.217]
[1680572811979,0.22115,1808.7,1808.2,1.217]
[1680572813352,0.66345,1808.7,1808.2,1.217]
[1680572815562,0.22115,1808.7,1808.2,1.217]
[1680572815884,0.22115,1808.7,1808.3,0.1217]
[1680572816989,0.22115,1808.7,1808.3,1.3417]
[1680572818200,0.21837437,1808.7,1808.3,1.3417]
[1680572819521,0.66067437,1808.7,1808.3,0.1217]
[1680572819645,0.66067437,1808.7,1808.1,2.22924476]
[1680572820401,0.66067437,1808.7,1808.1,2.45046476]
[1680572820767,0.21837437,1808.7,1808.1,2.45046476]
[1680572820979,0.44228,1808.8,1808.1,2.45046476]
[1680572820980,0.66343,1808.8,1808.2,0.24504648]
[1680572821168,0.23,1808.7,1808.2,0.46624648]
[1680572821498,0.45115,1808.7,1808.2,0.24504648]
[1680572822563,0.89345,1808.7,1808.2,0.24504648]
[1680572823401,0.982795,1808.7,1808.2,0.24504648]
[1680572823864,0.540495,1808.7,1808.2,0.24504648]
[1680572824569,0.982795,1808.7,1808.2,0.24504648]
[1680572826115,0.23,1808.7,1808.2,0.46625648]
[1680572826627,4.74135017,1808.9,1808.3,1.214]
[1680572826757,0.13475017,1808.9,1808.4,0.22118]
[1680572827089,0.35588017,1808.9,1808.4,0.187756]
[1680572827301,0.35588017,1808.9,1808.4,0.408936]
[1680572827451,0.35588017,1808.9,1808.5,0.48042324]
[1680572827651,0.22312,1809.0,1808.5,0.56935916]
[1680572827953,0.002,1809.1,1808.6,1.22]
[1680572828155,0.22109,1809.2,1808.6,8.72827218]
[1680572828353,0.44216,1809.3,1808.7,0.87282722]
[1680572828656,16.46535,1809.5,1808.9,0.22111]
[1680572828851,19.23137218,1809.5,1808.9,0.409448]
[1680572829290,19.23137218,1809.5,1808.9,0.188338]
[1680572829482,19.67348218,1809.5,1808.9,0.188338]
[1680572830082,5.70856,1809.5,1808.9,0.188338]
[1680572835118,5.70856,1809.5,1808.9,0.409458]
[1680572835322,5.70856,1809.5,1808.9,0.188338]
[1680572835919,0.002,1809.5,1809.1,1.22]
[1680572836100,0.50497704,1809.6,1809.2,0.122]
[1680572836606,3.04994922,1809.6,1808.9,5.043238]
[1680572836821,0.23,1809.5,1808.9,4.8549]
[1680572837016,0.45106,1809.5,1808.9,4.8529]
[1680572837310,0.47357951,1809.5,1808.9,5.07401]
[1680572837527,0.25251951,1809.5,1808.9,5.51826]
[1680572837726,0.25251951,1809.5,1809.0,2.98713218]
[1680572837727,0.24357951,1809.5,1809.0,2.98713218]
[1680572837933,0.24357951,1809.5,1809.1,0.29871322]
[1680572838736,0.23970415,1809.5,1809.1,0.29871322]
[1680572839306,0.23969415,1809.5,1809.1,0.29871322]
[1680572839658,0.68180415,1809.5,1809.1,0.29871322]
[1680572839859,0.68180415,1809.5,1809.0,0.01062094]
[1680572842591,0.68180415,1809.5,1809.1,0.46042875]
[1680572843585,0.23969415,1809.5,1809.1,0.46042875]
[1680572845295,1.22,1809.3,1809.1,0.46042875]
[1680572845514,0.22108,1809.3,1809.1,0.46042875]
[1680572846383,0.22108,1809.3,1808.9,0.006]
[1680572846597,0.66323,1809.3,1808.8,0.006]
[1680572846982,1.88123,1809.3,1808.8,0.006]
[1680572847925,1.43908,1809.3,1808.8,0.006]
[1680572849120,1.45772414,1809.3,1808.8,0.006]
[1680572849420,1.89987414,1809.3,1808.8,0.006]
[1680572849606,1.89987414,1809.3,1808.7,0.006]
[1680572851009,1.22,1809.1,1808.7,0.006]
[1680572851212,0.22112,1808.9,1808.7,0.006]
[1680572851417,0.22112,1808.9,1808.6,0.006]
[1680572851811,0.78536,1809.0,1808.6,0.006]
[1680572852008,11.30852,1809.0,1808.6,0.006]
[1680572852213,11.31052,1809.0,1808.6,0.006]
[1680572852724,11.75275,1809.0,1808.6,0.006]
[1680572852930,11.31052,1809.0,1808.6,0.006]
[1680572855145,5.809,1808.8,1808.6,0.006]
[1680572855348,0.66349,1808.6,1808.2,0.006]
[1680572855494,1.45,1808.5,1808.0,0.006]
[1680572855689,13.0674,1808.5,1808.0,0.006]
[1680572855889,0.66357,1808.4,1808.0,0.006]
[1680572857418,0.66957,1808.4,1808.1,0.40007891]
[1680572858565,1.22,1808.3,1807.9,0.4322316]
[1680572858764,1.6705,1808.2,1807.9,0.4322316]
[1680572859921,1.6765,1808.2,1807.9,0.4322316]
[1680572861571,2.76865,1808.0,1807.9,0.4322316]
[1680572861726,5.54067218,1808.0,1807.9,0.4322316]
[1680572861925,5.54267218,1808.0,1807.9,0.4322316]
[1680572862118,8.79131632,1808.0,1807.9,0.4322316]
[1680572862719,8.79131632,1808.0,1807.6,0.1]
[1680572862919,2.76883,1807.8,1807.6,0.1]
[1680572863120,2.77483,1807.8,1807.6,0.1]
[1680572863531,2.77483,1807.8,1807.7,0.3736701]
[1680572863964,5.77483,1807.8,1807.7,0.3736701]
[1680572864175,5.77683,1807.8,1807.7,0.3736701]
[1680572864468,5.77683,1807.8,1807.6,0.1]
[1680572864469,3.67178,1807.8,1807.6,0.1]
[1680572864672,3.66978,1807.8,1807.6,0.1]
[1680572865417,3.66978,1807.8,1807.7,0.3736701]
[1680572866258,0.66978,1807.8,1807.7,0.3736701]
[1680572866468,0.66978,1807.8,1807.6,0.1]
[1680572867570,0.66978,1807.8,1807.7,0.37384723]
[1680572868429,0.66978,1807.8,1807.6,0.1]
[1680572869560,0.66978,1807.8,1807.7,0.37384723]
[1680572870579,0.66978,1807.8,1807.6,0.1]
[1680572871360,0.66978,1807.8,1807.7,0.37384723]
[1680572872373,0.66978,1807.8,1807.6,0.1]
[1680572873577,0.66978,1807.8,1807.7,0.37384723]
[1680572874378,0.66978,1807.8,1807.6,0.1]
[1680572874982,0.22726,1807.8,1807.6,0.1]
[1680572875182,0.22126,1807.8,1807.6,0.1]
[1680572875490,0.66378,1807.8,1807.7,0.37384723]
[1680572875633,0.22126,1807.8,1807.7,0.37384723]
[1680572876032,0.66378,1807.8,1807.7,0.37384723]
[1680572876526,0.66378,1807.8,1807.6,0.1]
[1680572877374,0.66378,1807.8,1807.7,0.37384723]
[1680572878350,0.66378,1807.8,1807.6,0.1]
[1680572879303,11.5405,1807.7,1807.6,0.1]
[1680572879593,13.09142,1807.7,1807.6,0.1]
[1680572880292,14.31542,1807.7,1807.6,0.1]
[1680572880597,14.54542,1807.7,1807.6,0.1]
[1680572881879,23.12044218,1807.7,1807.6,0.1]
[1680572882487,23.11444218,1807.7,1807.6,0.1]
[1680572883757,23.11444218,1807.7,1807.6,0.09795307]
[1680572884588,11.57394218,1807.7,1807.6,0.09795307]
[1680572886692,5.76494218,1807.7,1807.6,0.09795307]
[1680572887692,14.57394218,1807.7,1807.6,0.09795307]
[1680572888142,14.57594218,1807.7,1807.6,0.09795307]
[1680572888323,14.57994218,1807.7,1807.6,0.09795307]
[1680572888527,8.77094218,1807.7,1807.6,0.09795307]
[1680572888736,6.00492,1807.7,1807.6,0.09795307]
[1680572889678,4.67727,1807.7,1807.6,0.09795307]
[1680572889958,5.11782,1807.7,1807.6,0.09795307]
[1680572890110,5.11982,1807.7,1807.6,0.09795307]
[1680572890673,5.11982,1807.7,1807.6,0.49239889]
[1680572892411,5.11982,1807.7,1807.6,0.09795307]
[1680572894918,13.69484218,1807.7,1807.6,0.09795307]
[1680572895734,13.69484218,1807.7,1807.2,0.008]
[1680572895735,0.097,1807.6,1807.2,0.008]
[1680572895934,0.097,1807.6,1807.0,0.1]
[1680572895935,1.22,1807.3,1807.0,0.1]
[1680572896191,1.54942,1807.1,1807.0,0.1]
[1680572896535,4.54942,1807.1,1807.0,0.1]
[1680572896936,16.15622,1807.1,1807.0,0.1]
[1680572897169,16.15822,1807.1,1807.0,0.1]
[1680572899530,18.94288632,1807.1,1807.0,0.1]
[1680572899647,24.98188632,1807.1,1807.0,0.1]
[1680572899997,19.17288632,1807.1,1807.0,0.1]
[1680572900285,15.50283,1807.1,1807.0,0.1]
[1680572900595,15.50883,1807.1,1807.0,0.1]
[1680572900740,15.06614,1807.1,1807.0,0.1]
[1680572900941,15.50883,1807.1,1807.0,0.1]
[1680572901187,15.50483,1807.1,1807.0,0.1]
[1680572901400,15.50283,1807.1,1807.0,0.1]
[1680572902656,19.50749632,1807.1,1807.0,0.1]
[1680572907166,18.28749632,1807.1,1807.0,2.8]
[1680572907412,6.68069632,1807.1,1807.0,2.8]
[1680572908466,6.68069632,1807.1,1807.0,3.17698579]
[1680572908805,6.68069632,1807.1,1807.0,0.47698579]
[1680572909358,6.68069632,1807.1,1807.0,0.1]
[1680572910908,13.70969632,1807.1,1807.0,0.1]
[1680572915751,12.47105218,1807.1,1807.0,0.1]
[1680572915902,3.002,1807.1,1807.0,0.1]
[1680572916096,3.22134,1807.1,1807.0,0.1]
[1680572916646,0.66403,1807.1,1807.0,0.1]
[1680572917257,9.46905218,1807.1,1807.0,0.1]
[1680572917407,12.47105218,1807.1,1807.0,0.1]
[1680572917849,12.46900373,1807.1,1807.0,0.1]
[1680572919050,12.46900373,1807.1,1807.0,0.05]
[1680572919457,17.44720373,1807.1,1807.0,0.05]
[1680572921751,8.87218155,1807.1,1807.0,0.05]
[1680572922264,10.08418155,1807.1,1807.0,0.05]
[1680572924632,3.232,1807.1,1807.0,0.05]
[1680572924954,3.24197414,1807.2,1807.0,0.05]
[1680572925160,3.68264414,1807.2,1807.0,0.05]
[1680572926645,6.44866632,1807.2,1807.0,0.05]
[1680572926847,0.89403,1807.1,1807.0,0.05]
[1680572928935,0.45134,1807.1,1807.0,0.05]
[1680572929515,3.66005218,1807.1,1807.0,0.05]
[1680572929744,6.66005218,1807.1,1807.0,0.05]
[1680572929959,6.66205218,1807.1,1807.0,0.05]
[1680572933891,6.66205218,1807.1,1807.0,0.04733183]
[1680572934587,6.66205218,1807.1,1807.0,0.42431762]
[1680572935758,3.45334,1807.1,1807.0,0.42431762]
[1680572935946,0.45134,1807.1,1807.0,0.42431762]
[1680572936146,0.23,1807.1,1807.0,0.42431762]
[1680572936347,0.89403,1807.1,1807.0,0.42431762]
[1680572939195,1.77942,1807.1,1807.0,0.42431762]
[1680572942311,0.66403,1807.1,1807.0,0.42431762]
[1680572942824,0.89403,1807.1,1807.0,0.42431762]
[1680572944274,9.46905218,1807.1,1807.0,0.42431762]
[1680572944500,12.47105218,1807.1,1807.0,0.42431762]
[1680572944710,6.66205218,1807.1,1807.0,0.42431762]
[1680572944915,3.45334,1807.1,1807.0,0.42431762]
[1680572945116,3.45134,1807.1,1807.0,0.42431762]
[1680572945417,3.89403,1807.1,1807.0,0.42431762]
[1680572945940,0.89403,1807.1,1807.0,0.42431762]
[1680572947033,0.45134,1807.1,1807.0,0.42431762]
[1680572947530,0.89403,1807.1,1807.0,0.42431762]
[1680572948999,0.45134,1807.1,1807.0,0.42431762]
[1680572949201,0.89403,1807.1,1807.0,0.42431762]
[1680572951746,12.22438101,1807.1,1807.0,0.00031762]
[1680572951887,12.22638101,1807.1,1807.0,0.00031762]
[1680572952091,15.51363988,1807.1,1807.0,0.00031762]
[1680572952535,15.51363988,1807.1,1806.9,0.1]
[1680572952735,14.56638984,1807.0,1806.9,0.1]
[1680572952946,16.11790984,1807.0,1806.9,0.1]
[1680572953427,27.55050984,1807.0,1806.9,0.1]
[1680572953738,27.56915398,1807.0,1806.9,0.1]
[1680572953888,29.01012335,1807.0,1806.9,0.1]
[1680572954397,26.02778632,1807.0,1806.9,0.1]
[1680572956430,23.90370218,1807.0,1806.9,0.1]
[1680572956641,18.98014218,1807.0,1806.9,0.1]
[1680572958141,7.31754218,1807.0,1806.9,0.1]
[1680572958294,0.002,1807.0,1806.9,0.1046263]
[1680572958497,2.02162922,1807.4,1806.9,0.24708893]
[1680572958725,3.64624809,1807.4,1806.9,0.24708893]
[1680572959037,11.26054262,1807.4,1806.9,0.1046263]
[1680572959219,0.96073477,1807.3,1806.9,0.1046263]
[1680572959534,0.22133,1807.2,1807.0,0.34880851]
[1680572960032,0.44265,1807.3,1807.0,0.34880851]
[1680572960033,3.66398,1807.3,1807.0,0.34880851]
[1680572960198,3.22133,1807.3,1807.0,0.34880851]
[1680572961110,0.23,1807.2,1807.0,0.34880851]
[1680572962321,0.45133,1807.2,1807.0,0.34880851]
[1680572962518,0.23,1807.2,1807.0,0.34880851]
[1680572962689,3.0,1807.3,1807.0,0.34880851]
[1680572963122,3.22331,1807.4,1807.0,0.34880851]
[1680572963318,3.22131,1807.4,1807.0,0.41628799]
[1680572964108,3.66393,1807.4,1807.0,0.41628799]
[1680572967190,3.22131,1807.4,1807.0,0.41628799]
[1680572967859,3.0,1807.4,1807.0,0.41628799]
[1680572968560,3.80386657,1807.5,1807.0,0.41628799]
[1680572968710,3.80186657,1807.5,1807.0,0.41628799]
[1680572969340,0.80186657,1807.5,1807.0,0.41628799]
[1680572969545,30.55745599,1807.7,1807.2,0.664]
[1680572969757,0.2213,1807.5,1807.3,0.0664]
[1680572970127,0.58055657,1807.7,1807.3,0.0664]
[1680572970328,0.80181657,1807.8,1807.3,0.28772]
[1680572970526,1.54106734,1807.7,1807.3,0.0664]
[1680572970746,0.22127,1807.7,1807.3,0.0664]
[1680572971218,0.22127,1807.7,1807.3,0.07102528]
[1680572972119,0.22127,1807.7,1807.3,1.28502528]
[1680572972313,0.22127,1807.7,1807.4,0.12850253]
[1680572972652,0.21798319,1807.7,1807.4,0.13050253]
[1680572972957,0.21798319,1807.7,1807.4,0.12850253]
[1680572973315,3.80182657,1807.8,1807.4,0.12850253]
[1680572974259,3.0,1807.8,1807.5,1.217]
[1680572974557,0.22325,1807.9,1807.6,0.1217]
[1680572974758,3.22125,1807.9,1807.6,0.1217]
[1680572974978,0.22125,1807.9,1807.6,0.1217]
[1680572975316,0.58055657,1808.0,1807.6,0.1217]
[1680572975517,0.22125,1807.9,1807.6,0.1217]
[1680572976260,0.66375,1807.9,1807.6,0.1217]
[1680572977173,0.22125,1807.9,1807.6,0.1217]
[1680572977347,0.66373,1808.0,1807.6,0.1217]
[1680572977549,0.66373,1808.0,1807.7,0.29978365]
[1680572977749,0.22125,1808.0,1807.7,0.29978365]
[1680572978549,4.04165071,1808.1,1807.7,0.29978365]
[1680572978781,3.68232414,1808.1,1807.7,0.29978365]
[1680572979770,3.23987414,1808.1,1807.7,0.29978365]
[1680572980134,3.01864414,1808.1,1807.7,0.29978365]
[1680572980336,3.0,1808.1,1807.8,0.00462401]
[1680572980551,3.0,1808.1,1807.8,0.17889178]
[1680572981586,3.22122,1808.1,1807.8,0.17889178]
[1680572985485,3.22122,1808.1,1807.8,0.00462401]
[1680572986282,3.66367,1808.1,1807.8,0.00462401]
[1680572987785,3.22122,1808.1,1807.8,0.00462401]
[1680572988089,3.66367,1808.1,1807.8,0.00462401]
[1680572988948,3.66367,1808.1,1807.7,0.29978365]
[1680572992145,3.66367,1808.1,1807.7,0.29978365]
[1680572992449,3.22122,1808.1,1807.7,0.29978365]
[1680572992640,3.66367,1808.1,1807.7,0.29978365]
[1680572994747,0.23,1808.0,1807.7,0.29978365]
[1680572994935,0.22125,1807.9,1807.7,0.29978365]
[1680572999681,0.45124,1808.0,1807.7,0.29978365]
[1680573001385,0.89371,1808.0,1807.7,0.29978365]
[1680573004173,3.65973218,1808.0,1807.7,0.29978365]
[1680573004684,3.65973218,1808.0,1807.5,1.006]
[1680573005360,8.32943218,1808.0,1807.5,1.006]
[1680573005668,8.33143218,1808.0,1807.6,0.27787973]
[1680573006172,9.79302218,1807.9,1807.6,0.27787973]
[1680573006340,0.45127,1807.8,1807.6,0.27787973]
[1680573006547,3.21729218,1807.8,1807.6,0.27787973]
[1680573006776,3.65981218,1807.8,1807.6,0.27787973]
[1680573007644,3.65981218,1807.8,1807.3,0.006]
[1680573008727,3.65981218,1807.8,1807.4,0.38811176]
[1680573009875,3.65981218,1807.8,1807.3,0.006]
[1680573011842,0.66379,1807.8,1807.3,0.006]
[1680573012840,1.24434657,1807.8,1807.3,0.006]
[1680573013045,4.01036875,1807.8,1807.3,0.006]
[1680573013261,0.23,1807.7,1807.3,0.006]
[1680573013457,0.45127,1807.7,1807.3,0.623153]
[1680573013670,0.23,1807.7,1807.3,0.623153]
[1680573014163,0.45128,1807.7,1807.3,0.623153]
[1680573014670,0.23,1807.7,1807.3,0.623153]
[1680573015688,0.58055657,1807.8,1807.3,0.844473]
[1680573015981,13.09063418,1807.9,1807.4,0.2836153]
[1680573016148,12.44105071,1807.9,1807.4,0.2836153]
[1680573016358,12.21980071,1807.9,1807.4,0.28824033]
[1680573016816,12.22580071,1807.9,1807.4,0.28501679]
[1680573017147,12.44705071,1807.9,1807.4,0.06371679]
[1680573017375,12.22580071,1807.9,1807.4,0.28501679]
[1680573017589,12.20715657,1807.9,1807.4,1.28501679]
[1680573017800,12.20715657,1807.9,1807.5,0.12850168]
[1680573017949,0.008,1807.9,1807.6,0.22590452]
[1680573018158,0.58655657,1808.0,1807.6,0.00462452]
[1680573018353,0.006,1808.0,1807.6,0.16206614]
[1680573018692,0.006,1808.0,1807.6,0.38334614]
[1680573019248,0.006,1808.0,1807.6,0.16206614]
[1680573019446,0.22724,1808.0,1807.6,0.16206614]
[1680573019890,0.006,1808.0,1807.6,0.16206614]
[1680573020977,3.80778657,1808.1,1807.6,0.16206614]
[1680573021150,0.80778657,1808.1,1807.6,0.16206614]
[1680573022688,0.80778657,1808.1,1807.7,0.74636222]
[1680573022893,0.80778657,1808.1,1807.7,0.83720506]
[1680573030404,0.006,1808.1,1807.8,1.217]
[1680573030792,0.22122,1808.1,1807.8,1.217]
[1680573031224,0.22122,1808.1,1807.8,1.22162401]
[1680573032027,0.66367,1808.1,1807.8,1.22162401]
[1680573032192,0.22722,1808.1,1807.8,0.48730914]
[1680573032519,0.22122,1808.1,1807.8,0.48730914]
[1680573033071,0.22122,1808.1,1807.8,0.00462401]